{"text_format":"1","workbook":"xlsx","n_sheets":3,"sheets":["Super Élite","Papier","Pilotage"],"not_rendered":{"charts":0,"images":0,"macros":1,"external_links":0,"defined_names":22,"comments":0,"pivot_tables":0},"unopened":[],"bounds":{"document_bytes":16777216,"sheet_cells":100000,"rows_first":2000,"rows_last":500,"rows_between":2000,"halvings":0,"cell_chars":16384,"cell_head_chars":4096},"cells_cut":0,"cells_raw":0,"read":"whole","date_system":"1900"}

{"sheet":"Super Élite","index":0,"n_rows":35,"n_cols":18,"rows_kept":35,"cut":false,"hidden":false,"merged":[[0,17,0,19],[3,17,3,18]]}
["RANG","JOUEUR","TRS","PJ","IPS","FP","% VIC","DIFF","ERO","EC","TVP","Équipe",null,null,"Éric Tremblay","$B$3",null,"Indiquez votre nom dans la case Personne sondée.\nDéléguez cinq joueurs qui ne font pas partie de votre équipe à qui vous feriez confiance pour faire partie du comité de cotation. \n\nTrier les joueurs du plus fort (1er rang) au plus faible (dernier rang).\n- Sélectionnez un joueur dans la liste.\n- Pour le monter, utilisez la combinaison de touche CTRL+H ou bouton +.\n- Pour le descendre, utilisez la combinaison de touche CTRL+B ou bouton -."]
[null,1,2,3,4,5,6,7,8,9,10,11]
[1,"Éric Tremblay",{"$f":"VLOOKUP($B3,PIL_SELITE_STAT,C$2,FALSE)","v":10},151,752,"8.04","62.9",266,36,23,43,"Frankies & cie"]
[2,"Guillaume McNicoll",10,179,687,"7.45","58.7",196,33,28,39,"The Winning Stroke",null,null,"Personne sondée",null,null,"Proposition de comité"]
[3,"Jeff Blais",10,121,654,"7.18","53.7",43,20,23,26,"Sharp Strokes",null,null,null,null,null,"Joueur #1"]
[4,"Stéphane Boilard",10,178,771,"8.28","60.7",295,47,32,53,"ShooterBoys",null,null,null,null,null,"Joueur #2"]
[5,"Tom Theriault",10,60,616,"6.83","45.0",-50,11,14,14,"Shaft Clean",null,null,null,null,null,"Joueur #3"]
[6,"André Arcand",20,179,675,"7.37","55.3",175,41,23,48,"ShooterBoys",null,null,null,null,null,"Joueur #4"]
[7,"André Cardinal",20,124,685,"7.50","58.1",148,26,19,28,"Sharp Strokes",null,null,null,null,null,"Joueur #5"]
[8,"Carl Bélanger",20,65,534,"6.31","36.9",-57,17,8,17,"Substitut"]
[9,"Daniel Gagné",20,176,592,"6.55","46.0",-36,29,28,36,"Cold Blood & cie"]
[10,"Éric Lavoie",20,174,554,"6.09","44.8",-204,17,36,23,"The Knights"]
[11,"Marc Dufresne",20,162,592,"6.77","49.4",-10,28,28,29,"The Knights"]
[12,"Marco Rodier",20,188,691,"7.56","56.4",197,39,31,43,"Frankies & cie"]
[13,"Mario Daigle",20,183,575,"6.51","48.6",-5,27,26,31,"SitBack"]
[14,"Mario Frenette",20,175,640,"7.13","52.0",16,25,36,30,"The Knights"]
[15,"Pierre Bilodeau",20,166,678,"7.54","57.2",151,31,28,37,"The Winning Stroke"]
[16,"Sébastien Laramée",20,158,705,"7.78","61.4",177,32,27,34,"SitBack"]
[17,"Styve Gilbert",{"$f":"VLOOKUP($B19,PIL_SELITE_STAT,C$2,FALSE)","v":20},168,634,"7.05","54.2",81,37,22,38,"Cold Blood & cie"]
[18,"Tommy Cayer",20,177,766,"8.27","66.7",478,50,19,58,"The Winning Stroke"]
[19,"André Pelletier",30,127,699,"7.67","57.5",199,31,17,36,"Shaft Clean"]
[20,"Brandon Beaulieu",30,122,470,"5.60","44.3",-120,11,14,11,"Sharp Strokes"]
[21,"Denis Néron",30,182,593,"6.74","48.4",-4,32,27,37,"SitBack"]
[22,"Mario Tremblay",30,115,601,"6.81","52.2",45,21,14,22,"Shaft Clean"]
[23,"Patrick Ferland",30,175,468,"5.61","43.4",-240,16,24,18,"Cold Blood & cie"]
[24,"Christian Perron",40,176,526,"6.15","46.0",-144,17,29,19,"Cold Blood & cie"]
[25,"Franck Cayer",40,187,558,"6.36","48.1",-33,24,25,26,"Frankies & cie"]
[26,"François Provençal",40,188,505,"5.95","41.0",-176,22,28,24,"Frankies & cie"]
[27,"Marco Sanschagrin",40,171,525,"6.02","45.0",-81,23,19,27,"SitBack"]
[28,"Yannick Martel",40,156,576,"6.43","46.1",-95,22,28,28,"ShooterBoys"]
[29,"Denis Fournier",50,124,434,"5.22","34.7",-261,9,22,12,"Sharp Strokes"]
[30,"Roger Ducas",50,151,439,"5.30","37.1",-302,8,28,11,"The Knights"]
[31,"Sébastien Grenier",50,125,449,"5.31","40.0",-176,8,18,10,"Shaft Clean"]
[32,"Pierre Simard",60,156,514,"5.77","43.6",-155,13,25,19,"ShooterBoys"]
[33,"Simon Belzile",60,178,564,"6.40","44.9",-188,19,39,22,"The Winning Stroke"]

{"sheet":"Papier","index":1,"n_rows":34,"n_cols":6,"rows_kept":34,"cut":false,"hidden":false,"merged":[[2,1,6,2]]}
[null,"Indiquez votre nom dans la case Personne sondée.",null,null,"Joueur","Rang 1 à 33"]
[null,null,null,null,"Éric Tremblay"]
[null,"Déléguez cinq joueurs qui ne font pas partie de votre équipe à qui vous feriez confiance pour faire partie du comité de cotation. ",null,null,"Guillaume McNicoll"]
[null,null,null,null,"Jeff Blais"]
[null,null,null,null,"Stéphane Boilard"]
[null,null,null,null,"Tom Theriault"]
[null,null,null,null,"André Arcand"]
[null,"Personne sondée",null,null,"André Cardinal"]
[null,null,null,null,"Carl Bélanger"]
[null,null,null,null,"Daniel Gagné"]
[null,"Joueur #1",null,null,"Éric Lavoie"]
[null,null,null,null,"Marc Dufresne"]
[null,"Joueur #2",null,null,"Marco Rodier"]
[null,null,null,null,"Mario Daigle"]
[null,"Joueur #3",null,null,"Mario Frenette"]
[null,null,null,null,"Pierre Bilodeau"]
[null,"Joueur #4",null,null,"Sébastien Laramée"]
[null,null,null,null,"Styve Gilbert"]
[null,"Joueur #5",null,null,"Tommy Cayer"]
[null,null,null,null,"André Pelletier"]
[null,null,null,null,"Brandon Beaulieu"]
[null,null,null,null,"Denis Néron"]
[null,null,null,null,"Mario Tremblay"]
[null,null,null,null,"Patrick Ferland"]
[null,null,null,null,"Christian Perron"]
[null,null,null,null,"Franck Cayer"]
[null,null,null,null,"François Provençal"]
[null,null,null,null,"Marco Sanschagrin"]
[null,null,null,null,"Yannick Martel"]
[null,null,null,null,"Denis Fournier"]
[null,null,null,null,"Roger Ducas"]
[null,null,null,null,"Sébastien Grenier"]
[null,null,null,null,"Pierre Simard"]
[null,null,null,null,"Simon Belzile"]

{"sheet":"Pilotage","index":2,"n_rows":73,"n_cols":14,"rows_kept":73,"cut":false,"hidden":false,"merged":[[3,0,3,11]]}
["SheetChange",null,null,null,null,"Version",null,null,null,null,"Fichier vierge",null,null,"Nom Fichier"]
[true,null,null,null,null,14,null,null,null,null,true,null,null,"Cotation_VIERGE_SuperElite"]
[]
["SUPER ÉLITE"]
["Joueur","TRS","PJ","IPS","FP","% VIC","DIFF","ERO","EC","TVP","Équipe","Statut"]
["Éric Tremblay",10,151,752,"8.04","62.9",266,36,23,43,"Frankies & cie",{"$f":"IF(K6=\"Substitut\",\"S\",\"R\")","v":"R"}]
["Guillaume McNicoll",10,179,687,"7.45","58.7",196,33,28,39,"The Winning Stroke","R"]
["Jeff Blais",10,121,654,"7.18","53.7",43,20,23,26,"Sharp Strokes","R"]
["Stéphane Boilard",10,178,771,"8.28","60.7",295,47,32,53,"ShooterBoys","R"]
["Tom Theriault",10,60,616,"6.83","45.0",-50,11,14,14,"Shaft Clean","R"]
["André Arcand",20,179,675,"7.37","55.3",175,41,23,48,"ShooterBoys","R"]
["André Cardinal",20,124,685,"7.50","58.1",148,26,19,28,"Sharp Strokes","R"]
["Carl Bélanger",20,65,534,"6.31","36.9",-57,17,8,17,"Substitut","S"]
["Daniel Gagné",20,176,592,"6.55","46.0",-36,29,28,36,"Cold Blood & cie","R"]
["Éric Lavoie",20,174,554,"6.09","44.8",-204,17,36,23,"The Knights","R"]
["Marc Dufresne",20,162,592,"6.77","49.4",-10,28,28,29,"The Knights","R"]
["Marco Rodier",20,188,691,"7.56","56.4",197,39,31,43,"Frankies & cie","R"]
["Mario Daigle",20,183,575,"6.51","48.6",-5,27,26,31,"SitBack","R"]
["Mario Frenette",20,175,640,"7.13","52.0",16,25,36,30,"The Knights","R"]
["Pierre Bilodeau",20,166,678,"7.54","57.2",151,31,28,37,"The Winning Stroke","R"]
["Sébastien Laramée",20,158,705,"7.78","61.4",177,32,27,34,"SitBack","R"]
["Styve Gilbert",20,168,634,"7.05","54.2",81,37,22,38,"Cold Blood & cie","R"]
["Tommy Cayer",20,177,766,"8.27","66.7",478,50,19,58,"The Winning Stroke","R"]
["André Pelletier",30,127,699,"7.67","57.5",199,31,17,36,"Shaft Clean","R"]
["Brandon Beaulieu",30,122,470,"5.60","44.3",-120,11,14,11,"Sharp Strokes","R"]
["Denis Néron",30,182,593,"6.74","48.4",-4,32,27,37,"SitBack","R"]
["Mario Tremblay",30,115,601,"6.81","52.2",45,21,14,22,"Shaft Clean","R"]
["Patrick Ferland",30,175,468,"5.61","43.4",-240,16,24,18,"Cold Blood & cie","R"]
["Christian Perron",40,176,526,"6.15","46.0",-144,17,29,19,"Cold Blood & cie","R"]
["Franck Cayer",40,187,558,"6.36","48.1",-33,24,25,26,"Frankies & cie","R"]
["François Provençal",40,188,505,"5.95","41.0",-176,22,28,24,"Frankies & cie","R"]
["Marco Sanschagrin",40,171,525,"6.02","45.0",-81,23,19,27,"SitBack","R"]
["Yannick Martel",40,156,576,"6.43","46.1",-95,22,28,28,"ShooterBoys","R"]
["Denis Fournier",50,124,434,"5.22","34.7",-261,9,22,12,"Sharp Strokes","R"]
["Roger Ducas",50,151,439,"5.30","37.1",-302,8,28,11,"The Knights","R"]
["Sébastien Grenier",50,125,449,"5.31","40.0",-176,8,18,10,"Shaft Clean","R"]
["Pierre Simard",60,156,514,"5.77","43.6",-155,13,25,19,"ShooterBoys","R"]
["Simon Belzile",60,178,564,"6.40","44.9",-188,19,39,22,"The Winning Stroke","R"]
[]
["Tous - Alpha",null,null,null,null,null,null,null,null,null,"Réguliers - Alpha"]
["André Arcand",null,null,null,null,null,null,null,null,null,"André Arcand"]
["André Cardinal",null,null,null,null,null,null,null,null,null,"André Cardinal"]
["André Pelletier",null,null,null,null,null,null,null,null,null,"André Pelletier"]
["Brandon Beaulieu",null,null,null,null,null,null,null,null,null,"Brandon Beaulieu"]
["Carl Bélanger",null,null,null,null,null,null,null,null,null,"Christian Perron"]
["Christian Perron",null,null,null,null,null,null,null,null,null,"Daniel Gagné"]
["Daniel Gagné",null,null,null,null,null,null,null,null,null,"Denis Fournier"]
["Denis Fournier",null,null,null,null,null,null,null,null,null,"Denis Néron"]
["Denis Néron",null,null,null,null,null,null,null,null,null,"Éric Lavoie"]
["Éric Lavoie",null,null,null,null,null,null,null,null,null,"Éric Tremblay"]
["Éric Tremblay",null,null,null,null,null,null,null,null,null,"Franck Cayer"]
["Franck Cayer",null,null,null,null,null,null,null,null,null,"François Provençal"]
["François Provençal",null,null,null,null,null,null,null,null,null,"Guillaume McNicoll"]
["Guillaume McNicoll",null,null,null,null,null,null,null,null,null,"Jeff Blais"]
["Jeff Blais",null,null,null,null,null,null,null,null,null,"Marc Dufresne"]
["Marc Dufresne",null,null,null,null,null,null,null,null,null,"Marco Rodier"]
["Marco Rodier",null,null,null,null,null,null,null,null,null,"Mario Daigle"]
["Marco Sanschagrin",null,null,null,null,null,null,null,null,null,"Mario Frenette"]
["Mario Daigle",null,null,null,null,null,null,null,null,null,"Mario Tremblay"]
["Mario Frenette",null,null,null,null,null,null,null,null,null,"Patrick Ferland"]
["Mario Tremblay",null,null,null,null,null,null,null,null,null,"Pierre Bilodeau"]
["Patrick Ferland",null,null,null,null,null,null,null,null,null,"Pierre Simard"]
["Pierre Bilodeau",null,null,null,null,null,null,null,null,null,"Roger Ducas"]
["Pierre Simard",null,null,null,null,null,null,null,null,null,"Sébastien Grenier"]
["Roger Ducas",null,null,null,null,null,null,null,null,null,"Sébastien Laramée"]
["Sébastien Grenier",null,null,null,null,null,null,null,null,null,"Simon Belzile"]
["Sébastien Laramée",null,null,null,null,null,null,null,null,null,"Stéphane Boilard"]
["Simon Belzile",null,null,null,null,null,null,null,null,null,"Styve Gilbert"]
["Stéphane Boilard",null,null,null,null,null,null,null,null,null,"Tom Theriault"]
["Styve Gilbert",null,null,null,null,null,null,null,null,null,"Tommy Cayer"]
["Tom Theriault",null,null,null,null,null,null,null,null,null,"Yannick Martel"]
["Tommy Cayer"]
["Yannick Martel"]